bitfinex-derivatives/quotes_ETHF0:USTF0_20251117
["timestamp","ask_amount","ask_price","bid_price","bid_amount"]
[1763392226567,3.2078,3129.6,3129.5,0.5205827]
[1763392226761,3.2078,3130.0,3129.8,0.51806]
[1763392226962,0.00479685,3130.3,3130.1,0.51801]
[1763392227161,0.00479685,3130.3,3129.5,0.0024727]
[1763392227362,3.2078,3129.8,3129.5,0.0024727]
[1763392228060,3.2078,3130.2,3130.0,0.51803]
[1763392228265,0.00479685,3130.3,3130.2,0.518]
[1763392228469,0.00363364,3130.5,3130.4,0.51796]
[1763392228863,0.00363364,3130.5,3130.4,6.92016]
[1763392229170,0.00363364,3130.5,3130.0,3.2078]
[1763392229474,3.2078,3130.1,3129.6,1.305]
[1763392229770,3.2078,3130.1,3129.5,3.2102727]
[1763392229771,3.2078,3130.1,3129.7,40.8]
[1763392229969,3.2078,3130.1,3129.5,0.0024727]
[1763392230169,3.72589,3129.7,3129.5,0.0024727]
[1763392230365,3.2078,3129.7,3129.5,0.0024727]
[1763392230570,3.2078,3129.7,3129.5,0.5205827]
[1763392230766,3.2078,3129.7,3129.5,0.0024727]
[1763392230963,3.72589,3129.7,3129.5,0.0024727]
[1763392231361,3.2078,3129.7,3129.5,0.0024727]
[1763392231572,3.2078,3129.7,3129.5,0.5205827]
[1763392231967,3.2078,3129.7,3129.5,0.0024727]
[1763392232167,3.72589,3129.7,3129.5,0.0024727]
[1763392232664,0.51815,3129.3,3129.2,0.00479685]
[1763392232967,0.00363364,3130.5,3129.6,0.5181]
[1763392232968,3.2078,3129.9,3129.6,0.5181]
[1763392233167,3.2078,3129.9,3129.7,0.51808]
[1763392233568,3.2078,3129.9,3129.3,3.2078]
[1763392233764,3.2078,3129.9,3129.3,0.00384461]
[1763392233965,3.2078,3129.4,3129.3,0.00384461]
[1763392234262,3.2078,3129.9,3129.5,0.5181]
[1763392234466,3.2078,3129.9,3129.3,0.00384461]
[1763392234467,3.2078,3129.9,3129.7,0.51808]
[1763392234667,0.00363364,3130.5,3129.6,40.8]
[1763392234668,0.00363364,3130.5,3129.6,45.3267]
[1763392234868,3.2078,3131.4,3131.2,0.51782]
[1763392235071,3.2078,3131.9,3131.7,0.51775]
[1763392235373,3.2078,3131.9,3131.7,0.51774]
[1763392235578,3.2078,3131.9,3131.8,40.8]
[1763392235767,3.21143532,3131.9,3131.8,0.00370814]
[1763392235970,3.72915532,3131.9,3131.8,0.00370814]
[1763392236177,0.51783,3131.2,3131.0,0.00479685]
[1763392236384,3.2078,3131.1,3131.0,0.00479685]
[1763392237076,0.51794,3130.6,3129.5,3.2078]
[1763392237274,0.51791,3130.8,3130.1,0.51801]
[1763392237578,3.2078,3130.9,3130.3,3.2078]
[1763392237775,3.2078,3130.9,3130.3,3.1732]
[1763392238074,3.2078,3130.5,3130.3,0.52276873]
[1763392238273,3.2078,3130.5,3130.3,0.00478873]
[1763392238475,3.2078,3130.5,3130.3,0.52275873]
[1763392238677,3.72575,3130.5,3130.3,0.00478873]
[1763392239078,0.51802,3130.1,3129.6,0.52197561]
[1763392239274,3.2078,3130.3,3129.6,0.00388561]
[1763392239481,3.2078,3130.1,3129.2,3.2078]
[1763392239680,0.51805,3129.9,3129.4,0.51812]
[1763392239974,0.51809,3129.7,3129.3,0.52292873]
[1763392240175,3.2078,3130.1,3129.3,0.00478873]
[1763392240379,3.2078,3129.6,3129.3,0.00806341]
[1763392240584,0.51803,3130.0,3129.5,0.51811]
[1763392240777,0.00230854,3130.1,3129.3,0.00806341]
[1763392240976,0.00230854,3130.1,3129.7,0.51808]
[1763392241177,0.00230854,3130.1,3129.9,0.51803]
[1763392241373,3.2078,3130.3,3129.8,3.2078]
[1763392241585,3.2078,3130.3,3130.1,0.51801]
[1763392241782,3.2078,3130.3,3129.8,3.2078]
[1763392241985,0.51809,3129.7,3129.3,0.00806341]
[1763392242180,3.2078,3129.9,3129.6,0.51809]
[1763392242374,3.2078,3129.9,3129.7,0.51808]
[1763392242574,0.00317829,3129.9,3129.7,0.51808]
[1763392242881,0.51812,3129.5,3129.3,0.00806341]
[1763392243186,3.2078,3129.4,3128.3,11.51]
[1763392243380,6.00317829,3129.9,3128.3,11.51]
[1763392243381,3.2078,3129.1,3128.3,11.51]
[1763392243680,3.2078,3129.1,3128.8,0.51823]
[1763392243889,0.00317829,3129.9,3129.3,0.51814]
[1763392243890,3.2078,3129.5,3129.3,0.51814]
[1763392244077,0.00317829,3129.9,3129.0,3.2078]
[1763392244078,3.21097829,3129.9,3129.7,0.51808]
[1763392244287,2.28840347,3132.5,3129.7,0.51808]
[1763392244288,0.00478873,3130.1,3130.0,0.51803]
[1763392244490,3.2078,3130.8,3130.0,3.2078]
[1763392244688,1.68180078,3132.6,3129.7,0.00404582]
[1763392244689,3.2078,3131.2,3131.0,0.51786]
[1763392244894,3.2078,3131.6,3131.5,0.51777]
[1763392245091,3.2078,3132.4,3132.0,0.51769]
[1763392245295,3.2078,3132.4,3132.0,0.00289601]
[1763392245296,3.72806729,3132.4,3132.0,0.00289601]
[1763392245492,3.21042729,3132.4,3132.1,0.51768]
[1763392245692,0.51767,3132.2,3132.0,0.00289601]
[1763392246294,3.21042729,3132.4,3132.0,0.00289601]
[1763392246690,0.51767,3132.2,3132.0,0.00289601]
[1763392247596,0.51782,3131.3,3131.1,3.2078]
[1763392247798,3.2078,3131.6,3131.1,3.2078]
[1763392248090,3.2078,3132.0,3131.5,0.51778]
[1763392248292,3.2078,3132.0,3131.1,3.2078]
[1763392248293,3.2078,3132.0,3131.8,0.51773]
[1763392248490,3.2078,3132.0,3131.8,0.00374091]
[1763392249004,3.7255,3132.0,3131.8,0.00374091]
[1763392249500,3.2078,3132.0,3130.3,4.3199659]
[1763392249705,3.72563,3131.3,3130.3,3.72578]
[1763392249896,3.2078,3131.3,3130.6,0.51793]
[1763392250099,3.2078,3130.7,3129.8,3.2078]
[1763392250492,3.2078,3131.2,3130.2,3.2078]
[1763392250693,0.00478873,3131.0,3130.8,0.51789]
[1763392251099,3.2078,3131.6,3131.4,0.51778]
[1763392251298,3.2078,3131.9,3131.6,0.51776]
[1763392251593,3.2078,3131.9,3131.2,3.2078]
[1763392251900,0.51779,3131.5,3130.8,3.2078]
[1763392252204,0.00478873,3131.5,3131.3,0.5178]
[1763392252405,0.00478873,3131.5,3131.3,0.51781]
[1763392252804,3.21042729,3132.4,3131.2,3.2078]
[1763392253004,3.21042729,3132.4,3132.0,0.51769]
[1763392253202,3.21042729,3132.4,3132.2,0.51766]
[1763392253401,0.00262729,3132.4,3132.2,0.51766]
[1763392253794,0.00262729,3132.4,3132.0,0.00722251]
[1763392254112,2.729e-05,3132.4,3132.3,0.51765]
[1763392254599,2.729e-05,3132.4,3132.3,3.192]
[1763392254803,2.729e-05,3132.4,3132.3,40.8]
[1763392255005,2.729e-05,3132.4,3132.3,46.8]
[1763392255309,1.602e-05,3132.6,3132.4,0.51763]
[1763392255506,1.602e-05,3132.6,3132.4,9.70963]
[1763392255706,3.2424,3133.7,3132.5,7.1121659]
[1763392255906,3.2424,3133.7,3132.8,0.51756]
[1763392256209,3.24608837,3133.7,3133.2,0.51749]
[1763392256407,3.2078,3133.3,3132.9,40.8]
[1763392256809,9.2078,3133.3,3132.1,3.2078]
[1763392257105,0.51764,3132.4,3132.0,0.00722251]
[1763392257308,3.2078,3132.5,3132.1,40.8]
[1763392257607,3.2078,3132.5,3132.3,0.51765]
[1763392257810,3.2078,3133.1,3132.1,44.0078]
[1763392258303,3.2078,3133.1,3132.6,0.51759]
[1763392258496,3.2078,3133.1,3132.1,44.0078]
[1763392258897,3.2078,3133.1,3132.3,0.51764]
[1763392259105,3.2078,3132.5,3132.1,40.8]
[1763392259310,3.2078,3132.5,3132.1,41.31768]
[1763392259610,3.2078,3132.5,3132.0,0.00722251]
[1763392259801,3.2078,3132.5,3132.0,0.52492251]
[1763392260001,0.51763,3132.4,3132.0,0.00722251]
[1763392260207,3.2078,3132.5,3132.0,0.00722251]
[1763392260404,3.2078,3132.1,3132.0,0.00722251]
[1763392260803,9.72548,3132.1,3132.0,2.251e-05]
[1763392261003,9.72548,3132.1,3130.6,3.2078]
[1763392261004,0.51789,3130.9,3130.6,3.2078]
[1763392261203,0.5179,3130.8,3130.6,3.2078]
[1763392261415,3.2078,3130.7,3129.1,0.29180735]
[1763392261613,3.2078,3129.8,3129.0,3.2078]
[1763392261918,3.2078,3129.4,3129.0,0.00267633]
[1763392262116,0.00377978,3129.8,3129.6,0.5181]
[1763392262307,1.2422,3131.7,3130.7,0.51791]
[1763392262308,3.2078,3130.9,3130.7,0.51791]
[1763392262505,3.2078,3130.9,3129.7,3.2078]
[1763392262506,3.2078,3131.5,3130.6,3.2078]
[1763392262708,3.2078,3131.1,3130.2,3.2078]
[1763392262914,0.51803,3130.0,3129.2,1.1121659]
[1763392263115,3.2078,3129.5,3129.0,0.00267633]
[1763392263316,3.2078,3129.1,3129.0,0.00267633]
[1763392263611,0.0047698,3129.9,3129.0,0.00267633]
[1763392263612,3.2078,3129.2,3129.0,0.00267633]
[1763392263816,3.72598,3129.2,3129.0,0.00267633]
[1763392264517,3.72598,3129.2,3127.6,3.2078]
[1763392264518,3.2078,3129.2,3127.6,3.2078]
[1763392264713,3.2078,3129.1,3128.0,3.2078]
[1763392265015,3.2078,3129.5,3129.3,0.51814]
[1763392265215,3.2078,3129.5,3128.4,4.3918]
[1763392265416,3.2078,3128.7,3128.6,0.00478873]
[1763392265613,0.51831,3128.4,3127.7,41.31841]
[1763392265915,3.2078,3128.3,3128.1,0.51834]
[1763392266106,3.2078,3128.9,3128.3,0.5183]
[1763392266312,0.00314754,3130.0,3128.5,3.2078]
[1763392266618,3.2078,3130.7,3129.6,3.2078]
[1763392266814,3.2078,3130.7,3130.5,0.51794]
[1763392267116,0.00478873,3130.9,3130.7,0.51791]
[1763392267511,0.00478873,3130.9,3130.7,3.71151]
[1763392267717,3.2078,3132.5,3132.3,0.51764]
[1763392267912,3.2078,3133.0,3132.1,3.2078]
[1763392268313,3.2078,3133.0,3132.7,0.51758]
[1763392268514,3.2078,3133.0,3132.1,3.2078]
[1763392268821,0.51765,3132.4,3132.2,0.00478873]
[1763392269020,3.2078,3132.5,3131.0,3.2078]
[1763392269215,3.2078,3132.0,3130.8,1.184]
[1763392269516,3.2078,3131.6,3131.4,0.51779]
[1763392269918,3.2078,3132.4,3130.9,3.2078]
[1763392270118,3.2078,3132.4,3131.2,3.2078]
[1763392270327,3.2078,3132.4,3131.6,3.2078]
[1763392270616,0.00478873,3132.9,3132.5,0.51761]
[1763392270819,0.00478873,3132.9,3132.1,3.2078]
[1763392271322,0.00478873,3132.9,3132.7,0.51758]
[1763392271516,0.00478873,3132.9,3132.1,3.2078]
[1763392271718,3.2078,3132.5,3132.1,3.2078]
[1763392272122,3.2078,3132.5,3132.3,0.51764]
[1763392272317,3.21258873,3132.9,3132.1,3.2078]
[1763392272724,3.2078,3132.4,3131.7,3.21258873]
[1763392272917,3.2078,3132.4,3131.8,40.8]
[1763392273222,3.72552,3131.9,3131.7,0.00478873]
[1763392273618,0.51775,3131.7,3130.9,3.2078]
[1763392273818,3.2078,3131.5,3131.2,0.51783]
[1763392274019,3.2078,3131.9,3130.9,3.2078]
[1763392274222,3.21258873,3132.9,3131.8,3.2078]
[1763392274422,3.19127858,3132.9,3132.7,0.51758]
[1763392274621,3.2078,3132.9,3132.7,0.51758]
[1763392275033,3.2078,3132.9,3132.3,3.2078]
[1763392275730,0.00327493,3133.0,3132.3,3.21258873]
[1763392275927,3.2078,3132.4,3132.3,0.00478873]
[1763392276836,0.00327493,3133.0,3132.9,0.51755]
[1763392277029,0.00327493,3133.0,3132.9,0.00393053]
[1763392277235,0.00478873,3133.3,3133.2,0.5175]
[1763392277433,0.0346,3133.7,3133.6,0.51744]
[1763392277735,0.0346,3133.7,3132.9,0.00393053]
[1763392277736,0.0346,3133.7,3133.5,0.51745]
[1763392278041,0.0346,3133.7,3133.5,0.51744]
[1763392278233,0.03700056,3133.7,3133.5,3.72524]
[1763392278422,1.2422,3135.6,3134.4,0.51729]
[1763392278733,1.2422,3135.6,3133.5,3.2078]
[1763392278734,0.0047698,3135.3,3134.8,3.72504]
[1763392278921,0.0047698,3135.3,3135.1,0.51718]
[1763392279125,0.0047698,3135.3,3134.8,3.2078]
[1763392279330,3.2078,3135.1,3134.5,0.51728]
[1763392279630,0.0047698,3135.3,3133.2,1.1204]
[1763392279631,3.2078,3134.7,3133.2,1.1204]
[1763392279822,0.51748,3133.4,3133.2,0.00298897]
[1763392280136,3.2078,3133.3,3133.2,0.00298897]
[1763392280331,0.0047698,3133.6,3133.2,0.00298897]
[1763392280630,0.0047698,3133.6,3133.5,3.72525]
[1763392280827,0.0047698,3133.6,3133.5,3.2078]
[1763392281029,0.0047698,3133.6,3133.2,0.00298897]
[1763392281333,3.72527,3133.4,3133.2,0.00298897]
[1763392281630,0.51766,3132.3,3131.3,3.2078]
[1763392281823,3.2078,3132.2,3131.3,3.2078]
[1763392282027,2.6044129,3133.3,3130.9,3.2078]
[1763392282028,3.2078,3131.6,3130.9,3.2078]
[1763392282229,0.51799,3130.3,3130.0,3.2078]
[1763392282426,0.51781,3131.4,3130.0,3.2078]
[1763392282628,3.2114394,3131.4,3130.0,3.21007012]
[1763392282832,0.00478873,3131.0,3130.5,3.72574]
[1763392283142,0.51793,3130.6,3130.4,0.00478873]
[1763392283433,3.2078,3130.7,3130.4,0.00478873]
[1763392283635,0.51794,3130.6,3130.4,0.00478873]
[1763392283838,3.2078,3130.7,3130.4,0.00478873]
[1763392284334,0.00478873,3131.0,3130.4,0.00478873]
[1763392284633,0.00478873,3131.0,3130.8,0.51789]
[1763392285028,0.0036394,3131.4,3131.3,0.51782]
[1763392285228,3.2078,3132.2,3131.3,3.2078]
[1763392285434,3.2078,3132.2,3132.0,0.51769]
[1763392285628,3.2078,3132.8,3132.6,0.5176]
[1763392285825,3.2078,3133.2,3132.8,0.51756]
[1763392286229,3.2100364,3133.2,3132.8,0.00363483]
[1763392286434,3.2100364,3133.2,3133.0,0.51753]
[1763392286733,3.2100364,3133.2,3132.8,0.00363483]
[1763392287134,3.2100364,3133.2,3132.7,0.00478873]
[1763392287135,0.51757,3132.8,3132.7,0.00478873]
[1763392287335,0.51757,3132.8,3130.8,2.78924885]
[1763392287336,0.51761,3132.6,3131.8,0.51773]
[1763392287528,3.2078,3132.8,3132.1,3.2078]
[1763392287732,3.2078,3132.9,3132.1,3.2078]
[1763392287929,3.2078,3133.0,3132.1,3.2078]
[1763392288127,3.2078,3133.0,3132.2,0.51766]
[1763392288337,0.51759,3132.7,3132.3,0.00478873]
[1763392288642,3.2078,3133.0,3132.3,0.00478873]
[1763392288832,0.51756,3132.9,3132.4,0.51763]
[1763392289037,3.2078,3133.0,3132.7,0.51757]
[1763392289337,3.2078,3133.0,3132.3,0.00478873]
[1763392289537,0.0022364,3133.2,3132.6,3.2078]
[1763392289739,0.0022364,3133.2,3133.0,0.51752]
[1763392290039,0.0022364,3133.2,3133.0,0.51753]
[1763392290436,0.0022364,3133.2,3133.0,6.91653]
[1763392290631,3.2078,3134.3,3134.1,0.51735]
[1763392290842,3.2078,3134.9,3134.7,0.51725]
[1763392291041,3.2078,3134.9,3134.1,3.2078]
[1763392291247,3.2078,3134.9,3134.7,0.51725]
[1763392291542,0.00330058,3134.9,3134.7,0.51994552]
[1763392291736,5.8e-07,3134.9,3134.7,0.51994552]
[1763392291934,5.8e-07,3134.9,3134.7,6.51994552]
[1763392292129,5.8e-07,3134.9,3134.7,0.51994552]
[1763392292438,3.2078,3136.8,3136.6,0.51694]
[1763392292645,3.2078,3136.8,3136.4,0.51697]
[1763392292831,3.2078,3136.8,3136.6,0.51692]
[1763392293234,3.21028772,3136.8,3136.7,40.8]
[1763392293430,0.51696,3136.6,3136.4,0.00478873]
[1763392293836,0.51699,3136.3,3135.5,3.2078]
[1763392294042,3.2078,3136.1,3135.6,40.8]
[1763392294245,0.00248772,3136.8,3136.0,3.2078]
[1763392294540,0.00248772,3136.8,3136.6,0.51693]
[1763392294745,0.00248772,3136.8,3136.4,3.72476]
[1763392294947,0.00248772,3136.8,3136.6,0.51693]
[1763392295341,0.00478873,3136.9,3136.8,0.51691]
[1763392295638,3.2078,3138.1,3136.8,4.3288]
[1763392295838,3.2078,3138.1,3137.8,0.51673]
[1763392296034,0.0346,3138.7,3138.6,0.51661]
[1763392296234,0.0346,3138.7,3138.5,0.51662]
[1763392296446,0.03827353,3138.7,3138.5,0.00258838]
[1763392296841,0.51661,3138.6,3138.5,0.00258838]
[1763392297039,0.51671,3138.1,3137.9,3.2078]
[1763392297241,3.2078,3138.4,3137.8,40.8]
[1763392297940,0.00475304,3138.4,3137.8,44.01626696]
[1763392298349,0.51672,3138.0,3137.8,40.80846696]
[1763392298642,0.51672,3138.0,3137.8,0.00846696]
[1763392298850,0.00475304,3138.4,3138.3,0.51666]
[1763392299040,0.00475304,3138.4,3138.3,41.31666]
[1763392299440,0.00475304,3138.4,3138.3,40.8]
[1763392299739,3.21255304,3138.4,3137.8,0.00846696]
[1763392299943,3.72452,3138.0,3137.8,0.00846696]
[1763392300241,3.2078,3138.0,3137.8,0.00846696]
[1763392300444,0.00475304,3138.4,3137.8,0.00846696]
[1763392300643,0.00475304,3138.4,3138.1,3.2078]
[1763392300944,0.00475304,3138.4,3137.8,0.00846696]
[1763392301241,0.00475304,3138.4,3138.2,0.51667]
[1763392301436,0.00475304,3138.4,3137.8,0.00846696]
[1763392301637,0.00475304,3138.4,3138.0,0.51671]
[1763392302044,0.51668,3138.2,3137.8,0.00846696]
[1763392302234,0.00475304,3138.4,3137.8,3.21626696]
[1763392303146,0.00475304,3138.4,3138.3,0.51666]
[1763392303350,0.00475304,3138.4,3137.8,0.00846696]
[1763392303351,0.51671,3138.0,3137.8,0.00846696]
[1763392303535,3.72451,3138.0,3137.8,0.00846696]
[1763392304435,3.2078,3138.0,3137.0,3.2078]
[1763392304748,3.2078,3137.1,3136.3,3.2078]
[1763392304939,3.72466,3137.1,3136.3,3.2078]
[1763392305142,0.51689,3136.9,3136.4,40.8]
[1763392305449,3.2078,3137.5,3136.4,0.00282947]
[1763392305740,3.72459,3137.5,3136.7,3.2078]
[1763392306134,3.2078,3137.9,3137.8,0.51674]
[1763392307046,0.00475304,3138.4,3137.4,3.2078]
[1763392307236,0.00475304,3138.4,3138.3,0.51666]
[1763392307441,0.00475304,3138.4,3138.0,0.0047805]
[1763392307642,0.51666,3138.3,3138.0,0.0047805]
[1763392307941,0.00475304,3138.4,3138.0,0.0047805]
[1763392308549,0.00475304,3138.4,3138.3,1.63766]
[1763392308842,0.03090464,3138.7,3138.6,0.51661]
[1763392309144,3.2078,3139.4,3139.3,0.5165]
[1763392309542,3.2078,3139.4,3138.8,0.51658]
[1763392309744,3.2125805,3139.4,3138.7,0.51659]
[1763392309942,3.2125805,3139.4,3139.2,0.5165]
[1763392310142,3.2125805,3139.4,3138.6,3.21091937]
[1763392310143,3.21551485,3139.4,3138.6,3.21091937]
[1763392310743,0.51659,3138.8,3138.6,0.00311937]
[1763392311541,3.2078,3138.9,3138.6,0.00311937]
[1763392311736,0.00771485,3139.4,3138.6,0.00311937]
[1763392311737,3.2078,3139.3,3138.6,0.00311937]
[1763392311945,3.2078,3138.9,3138.6,0.00311937]
[1763392312137,0.51658,3138.8,3138.6,0.00311937]
[1763392312536,0.51669,3138.1,3138.0,0.0047805]
[1763392312742,0.51673,3137.9,3136.9,3.2078]
[1763392312939,0.51677,3137.7,3137.2,0.51684]
[1763392313247,3.2078,3137.7,3137.0,40.8]
[1763392313447,0.51678,3137.6,3137.0,40.8]
[1763392313638,0.51684,3137.3,3137.0,40.80740463]
[1763392313845,3.2078,3137.3,3137.0,0.00740463]
[1763392314044,0.51686,3137.1,3137.0,0.00740463]
[1763392314245,0.00252916,3137.1,3137.0,0.00740463]
[1763392314951,3.2078,3136.9,3134.8,3.2078]
[1763392315150,3.2078,3135.5,3135.0,40.8]
[1763392315345,2.60694206,3137.1,3135.0,40.8]
[1763392315346,0.5171,3135.7,3135.0,40.8]
[1763392315649,3.2078,3135.9,3135.0,40.8]
[1763392315847,2.6044129,3137.0,3135.6,4.2011]
[1763392315848,3.2078,3136.8,3135.6,4.2011]
[1763392316149,3.2125805,3136.5,3135.5,3.2078]
[1763392316349,3.2078,3136.0,3135.6,0.51711]
[1763392316550,3.72484,3136.0,3135.5,3.2078]
[1763392316750,0.0047805,3136.5,3135.5,3.2078]
[1763392316751,3.2078,3136.1,3135.7,0.51708]
[1763392316940,3.2078,3136.1,3135.5,3.2078]
[1763392317147,3.2078,3136.1,3135.9,0.51705]
[1763392317544,3.2078,3136.1,3135.7,0.51709]
[1763392317748,3.2078,3136.1,3135.6,0.51709]
[1763392317958,3.2078,3136.1,3135.1,0.0047805]
[1763392317959,3.2078,3135.7,3135.1,0.0047805]
[1763392318154,3.72484,3136.1,3135.5,0.51712]
[1763392318355,3.2078,3135.7,3135.1,0.0047805]
[1763392318547,0.51711,3135.6,3135.1,0.5219605]
[1763392318749,3.2078,3135.7,3135.1,0.0047805]
[1763392319154,3.2078,3135.7,3135.1,0.5219605]
[1763392319356,3.72496,3135.3,3135.1,0.0047805]
[1763392319658,3.2078,3135.3,3135.1,0.5219605]
[1763392319856,3.2078,3135.7,3135.1,0.0047805]
[1763392320455,3.2078,3135.3,3135.0,0.00406299]
[1763392320658,0.0047805,3136.5,3135.0,0.00406299]
[1763392320659,3.2078,3135.7,3135.0,0.00406299]
[1763392320852,3.2078,3136.2,3135.0,0.99736299]
[1763392321166,0.00252916,3137.1,3136.9,0.51687]
[1763392321358,0.00252916,3137.1,3135.9,3.2078]
[1763392321661,3.2078,3136.8,3136.6,0.51694]
[1763392322159,3.2078,3136.8,3135.9,3.2078]
[1763392322358,3.2078,3136.8,3136.4,0.0047805]
[1763392322555,0.0047805,3137.0,3136.4,0.0047805]
[1763392322952,0.0047805,3137.0,3136.8,0.5169]
[1763392323758,0.0047805,3137.0,3136.5,40.8]
[1763392324070,0.0047805,3137.0,3136.8,3.72469]
[1763392324253,0.00252916,3137.1,3137.0,0.51687]
[1763392324458,3.2078,3137.6,3137.5,0.51679]
[1763392324658,3.2078,3138.7,3138.5,0.51662]
[1763392324867,1.13218061,3140.1,3138.6,3.2078]
[1763392325062,1.13218061,3140.4,3140.2,0.51635]
[1763392325271,0.51622,3141.0,3140.3,3.2078]
[1763392325463,0.0047805,3140.6,3140.3,3.21046665]
[1763392325866,0.0047805,3140.6,3140.4,0.51631]
[1763392326272,0.0023548,3141.0,3140.9,0.51623]
[1763392326461,0.0023548,3141.0,3140.9,3.72403]
[1763392326665,0.0023548,3141.0,3140.9,3.2078]
[1763392326865,0.51627,3140.7,3140.3,0.00266665]
[1763392327060,0.51626,3140.8,3140.3,0.00266665]
[1763392327573,3.2078,3140.7,3140.3,0.00266665]
[1763392327872,3.2078,3141.6,3140.6,3.2078]
[1763392328071,3.2078,3141.6,3141.0,3.72401]
[1763392328262,3.2078,3141.6,3141.0,3.2078]
[1763392328467,3.2078,3141.6,3141.1,40.8]
[1763392328672,3.2078,3142.3,3141.1,40.8]
[1763392328970,3.2078,3141.3,3139.9,3.2078]
[1763392329166,3.2078,3141.2,3140.3,0.0047805]
[1763392329366,3.2078,3141.2,3140.4,3.2078]
[1763392329581,3.2078,3141.6,3140.7,3.2078]
[1763392330073,0.51607,3141.9,3141.7,0.51609]
[1763392330074,3.2078,3141.9,3141.7,0.51609]
[1763392330387,3.2078,3141.9,3141.0,3.2078]
[1763392330561,3.72388,3141.9,3141.0,3.2078]
[1763392330766,3.2078,3141.9,3141.0,3.2078]
[1763392331182,0.51619,3141.2,3141.0,3.2078]
[1763392331667,0.51625,3140.8,3140.7,0.00301455]
[1763392331876,3.2078,3141.1,3139.7,3.2078]
[1763392332075,3.2078,3139.8,3138.5,3.2078]
[1763392332265,3.2078,3138.9,3137.9,3.2078]
[1763392332464,1.13218061,3140.9,3137.2,0.9933]
[1763392332465,3.2078,3139.8,3138.3,3.2078]
[1763392332666,3.2078,3139.7,3138.8,3.2078]
[1763392332873,3.21185977,3139.7,3138.8,3.21194011]
[1763392333086,0.5165,3139.3,3138.9,40.8047805]
[1763392333371,0.0047805,3139.6,3138.9,0.0047805]
[1763392334372,0.51652,3139.2,3138.9,0.0047805]
[1763392334564,0.51649,3139.4,3138.9,0.0047805]
[1763392334766,0.0047805,3139.6,3138.9,3.2125805]
[1763392335177,0.51653,3139.2,3138.9,0.0047805]
[1763392335576,0.51653,3139.1,3138.9,0.0047805]
[1763392335973,3.2078,3139.3,3137.9,3.2078]
[1763392336176,3.2078,3139.3,3136.3,1.66824885]
[1763392336177,0.51678,3137.6,3136.8,3.2078]
[1763392336472,0.51674,3137.8,3137.2,3.2078]
[1763392336673,3.2078,3137.6,3136.8,3.2078]
[1763392336868,0.51683,3137.3,3136.9,0.51688]
[1763392337176,0.00396354,3137.3,3136.9,0.00311525]
[1763392337374,0.52079354,3137.3,3136.9,0.00311525]
[1763392337764,0.00396354,3137.3,3136.9,0.00311525]
[1763392337976,0.00396354,3137.3,3136.9,0.51999525]
[1763392338174,0.52079354,3137.3,3137.0,0.51687]
[1763392338375,0.00396354,3137.3,3136.9,0.00311525]
[1763392338571,0.00396354,3137.3,3137.2,3.72464]
[1763392338774,0.51686,3137.1,3136.9,0.00311525]
[1763392338969,0.00396354,3137.3,3136.9,0.00311525]
[1763392339375,0.00396354,3137.3,3137.1,0.51686]
[1763392339569,0.00396354,3137.3,3136.9,0.00311525]
[1763392339772,0.51685,3137.2,3136.9,0.00311525]
[1763392339969,0.00396354,3137.3,3137.1,0.51684]
[1763392340172,0.51696,3136.5,3136.4,3.2078]
[1763392340377,3.2078,3136.8,3135.9,3.2078]
[1763392340772,3.2078,3136.0,3135.5,3.9891]
[1763392340979,3.2078,3136.1,3135.7,0.51708]
[1763392341177,0.51709,3135.7,3135.5,3.9891]
[1763392341479,0.51708,3135.8,3135.6,0.0047805]
[1763392341681,3.2078,3136.5,3136.3,0.51699]
[1763392341872,0.00396354,3137.3,3136.3,0.51697]
[1763392342077,0.51685,3137.2,3136.3,3.2078]
[1763392342270,0.51685,3137.2,3136.8,0.5169]
[1763392342480,3.21176354,3137.3,3136.3,3.2078]
[1763392342688,0.5169,3136.9,3136.4,0.51697]
[1763392343086,0.51693,3136.7,3136.3,44.0078]
[1763392343281,3.21176354,3137.3,3137.0,0.51687]
[1763392343477,0.0047805,3137.4,3137.3,0.51683]
[1763392343781,3.2078,3138.1,3137.9,0.51672]
[1763392343983,3.2078,3139.0,3138.0,3.2078]
[1763392344280,3.2078,3139.4,3139.2,0.51651]
[1763392344480,3.21042593,3139.4,3139.2,0.00252843]
[1763392344880,0.00262593,3139.4,3139.2,0.51902843]
[1763392345180,0.00262593,3139.4,3139.2,0.00252843]
[1763392345679,0.00262593,3139.4,3139.2,1.51923843]
[1763392346281,0.928,3141.6,3139.2,1.51923843]
[1763392346282,0.51632,3140.4,3139.6,0.51644]
[1763392346477,3.2078,3141.6,3140.0,3.2078]
[1763392346675,3.2078,3141.6,3141.0,3.2078]
[1763392346877,3.72393,3141.6,3141.0,3.72402]
[1763392347076,3.2078,3141.6,3141.0,3.2078]
[1763392347283,0.00825193,3141.6,3141.3,0.51616]
[1763392347475,0.00825193,3141.6,3141.4,3.2078]
[1763392347785,0.00825193,3141.6,3141.4,3.7274567]
[1763392348184,0.00825193,3141.6,3141.4,3.2113167]
[1763392348488,0.00825193,3141.6,3141.4,3.7274567]
[1763392349188,0.51587,3143.2,3142.2,0.51601]
[1763392349489,0.51587,3143.2,3141.4,3.2113167]
[1763392349490,3.2078,3143.4,3142.8,0.5159]
[1763392349686,3.2078,3143.4,3142.4,3.72378]
[1763392349890,3.2078,3143.4,3142.7,0.51592]
[1763392350182,3.21017018,3143.4,3142.8,3.2078]
[1763392350384,0.00237018,3143.4,3143.2,0.51584]
[1763392350588,0.00237018,3143.4,3143.2,3.2078]
[1763392350781,0.00237018,3143.4,3142.8,3.2078]
[1763392350985,0.00237018,3143.4,3142.7,0.00477259]
[1763392350986,0.51592,3142.9,3142.7,0.00477259]
[1763392351188,0.51599,3142.4,3142.3,40.8]
[1763392351489,0.51599,3142.4,3141.6,3.2078]
[1763392351490,0.5161,3141.8,3141.6,3.2078]
[1763392351697,6.0,3142.8,3140.2,3.2078]
[1763392351698,0.5163,3140.5,3140.2,3.2078]